fUSD/lending_fUSD_20250618
["ID","MTS","AMOUNT","RATE_DAILY","PERIOD"]
[366443179,1750257069367,-151.0,0.00018,2]
[366443180,1750257069377,-151.0,0.00018,2]
[366443181,1750257069387,-154.574086,0.00018,2]
[366443182,1750257069397,-151.0,0.00018,2]
[366443183,1750257069407,-151.0,0.00018,2]
[366443184,1750257069418,-151.0,0.00018,2]
[366443185,1750257069430,-151.0,0.00018,2]
[366443186,1750257069439,-151.0,0.00018,2]
[366443187,1750257069449,-153.260645,0.00018,2]
[366443188,1750257069459,-161.306628,0.00018,2]
[366443189,1750257069470,-151.0,0.00018,2]
[366443190,1750257069480,-151.0,0.00018,2]
[366443191,1750257069491,-442.310431,0.00018,2]
[366443192,1750257069501,-442.310431,0.00018,2]
[366443193,1750257069511,-152.385546,0.00018,2]
[366443194,1750257069521,-151.0,0.00018,2]
[366443195,1750257069531,-152.290779,0.00018,2]
[366443196,1750257069541,-151.0,0.00018,2]
[366443197,1750257069551,-151.0,0.00018,2]
[366443198,1750257069562,-273.273604,0.00018,2]
[366443199,1750257069572,-273.273604,0.00018,2]
[366443200,1750257069581,-151.0,0.00018,2]
[366443201,1750257069592,-151.0,0.00018,2]
[366443202,1750257069602,-151.0,0.00018,2]
[366443203,1750257069611,-151.0,0.00018,2]
[366443204,1750257069621,-151.0,0.00018,2]
[366443205,1750257069631,-151.0,0.00018,2]
[366443206,1750257069641,-151.0,0.00018,2]
[366443207,1750257069651,-151.0,0.00018,2]
[366443208,1750257069661,-151.0,0.00018,2]
[366443209,1750257069671,-151.0,0.00018,2]
[366443210,1750257069680,-151.0,0.00018,2]
[366443211,1750257069690,-151.0,0.00018,2]
[366443212,1750257069700,-151.0,0.00018,2]
[366443213,1750257069710,-151.0,0.00018,2]
[366443214,1750257069720,-151.205513,0.00018,2]
[366443215,1750257069730,-151.0,0.00018,2]
[366443216,1750257069740,-151.0,0.00018,2]
[366443217,1750257069749,-151.0,0.00018,2]
[366443218,1750257069759,-151.0,0.00018,2]
[366443219,1750257069772,-151.0,0.00018,2]
[366443220,1750257069782,-151.0,0.00018,2]
[366443221,1750257069792,-151.0,0.00018,2]
[366443222,1750257069802,-151.0,0.00018,2]
[366443223,1750257069812,-151.0,0.00018,2]
[366443224,1750257069823,-168.70136,0.00018,2]
[366443225,1750257069834,-168.70136,0.00018,2]
[366443226,1750257069844,-257.966267,0.00018,2]
[366443227,1750257069855,-257.966267,0.00018,2]
[366443228,1750257069866,-151.0,0.00018,2]
[366443229,1750257069875,-151.0,0.00018,2]
[366443230,1750257069885,-151.0,0.00018,2]
[366443231,1750257069895,-151.0,0.00018,2]
[366443232,1750257069905,-151.0,0.00018,2]
[366443233,1750257069915,-151.0,0.00018,2]
[366443234,1750257069924,-153.72,0.00018,2]
[366443235,1750257069934,-1000.0,0.00018,2]
[366443236,1750257069944,-1000.0,0.00018,2]
[366443237,1750257069953,-1000.0,0.00018,2]
[366443238,1750257069963,-1000.0,0.00018,2]
[366443239,1750257069974,-1000.0,0.00018,2]
[366443240,1750257069984,-920.49046941,0.00018,2]
[366443241,1750257069994,-213.378589,0.00018,2]
[366443242,1750257070004,-213.378589,0.00018,2]
[366443243,1750257070017,-261.610512,0.00018,2]
[366443244,1750257070026,-261.610512,0.00018,2]
[366443245,1750257070036,-200.0,0.00018,2]
[366443246,1750257070046,-1000.0,0.00018,2]
[366443247,1750257070056,-1000.0,0.00018,2]
[366443248,1750257070066,-1000.0,0.00018,2]
[366443249,1750257070076,-1000.0,0.00018,2]
[366443250,1750257070086,-1000.0,0.00018,2]
[366443251,1750257070096,-1000.0,0.00018,2]
[366443252,1750257070105,-1000.0,0.00018,2]
[366443253,1750257070115,-1000.0,0.00018,2]
[366443254,1750257070125,-1000.0,0.00018,2]
[366443255,1750257070135,-1000.0,0.00018,2]
[366443256,1750257070145,-24180.88733171,0.00018,2]
[366443257,1750257070155,-151.0,0.00018001,2]
[366443258,1750257070165,-151.0,0.00018001,2]
[366443259,1750257070175,-151.0,0.00018001,2]
[366443260,1750257070186,-151.0,0.00018001,2]
[366443261,1750257070197,-151.0,0.00018001,2]
[366443262,1750257070208,-151.0,0.00018001,2]
[366443263,1750257070218,-151.0,0.00018001,2]
[366443264,1750257070228,-260.21872113,0.00018001,2]
[366443265,1750257070238,-151.0,0.00018001,2]
[366443266,1750257070248,-153.00790364,0.00018001,2]
[366443267,1750257070259,-154.0,0.00018001,2]
[366443268,1750257070274,-155.17344834,0.00018001,2]
[366443269,1750257070284,-154.0,0.00018001,2]
[366443270,1750257070294,-1000.0,0.00018021,2]
[366443271,1750257070304,-1000.0,0.00018021,2]
[366443272,1750257070313,-1000.39815395,0.00018021,2]
[366443273,1750257070323,-1000.0,0.00018021,2]
[366443274,1750257070332,-1000.0,0.00018021,2]
[366443275,1750257070342,-1500.0,0.00018068,2]
[366443276,1750257070678,-1500.0,0.00018068,2]
[366443277,1750257070689,-151.0,0.00018082,2]
[366443278,1750257070699,-151.0,0.00018082,2]
[366443279,1750257070708,-151.0,0.00018082,2]
[366443280,1750257070718,-151.0,0.00018082,2]
[366443281,1750257070728,-151.0,0.00018082,2]
[366443282,1750257070737,-151.0,0.00018082,2]
[366443283,1750257070746,-151.0,0.00018082,2]
[366443284,1750257070755,-151.0,0.00018082,2]
[366443285,1750257070767,-151.487009,0.00018082,2]
[366443286,1750257070777,-151.0,0.00018082,2]
[366443287,1750257070787,-151.0,0.00018082,2]
[366443288,1750257070797,-151.0,0.00018082,2]
[366443289,1750257070807,-151.0,0.00018082,2]
[366443290,1750257070818,-151.560431,0.00018082,2]
[366443291,1750257070828,-151.0,0.00018082,2]
[366443292,1750257070838,-490.0,0.00018082,2]
[366443293,1750257070848,-686.14,0.00018082,2]
[366443294,1750257070858,-551.49,0.00018082,2]
[366443295,1750257070868,-777.25,0.00018082,2]
[366443296,1750257070878,-490.0,0.00018082,2]
[366443297,1750257070888,-518.54,0.00018082,2]
[366443298,1750257070898,-560.09,0.00018082,2]
[366443299,1750257070907,-285.76,0.00018082,2]
[366443300,1750257070918,-151.0,0.00018082,2]
[366443301,1750257070928,-490.0,0.00018082,2]
[366443302,1750257070938,-490.0,0.00018082,2]
[366443303,1750257070949,-490.0,0.00018082,2]
[366443304,1750257070959,-300.0,0.00018082,2]
[366443305,1750257070970,-490.0,0.00018082,2]
[366443306,1750257070980,-490.0,0.00018082,2]
[366443307,1750257070990,-781.86,0.00018082,2]
[366443308,1750257071000,-492.72,0.00018082,2]
[366443309,1750257071010,-490.0,0.00018082,2]
[366443310,1750257071025,-519.56,0.00018082,2]
[366443311,1750257071035,-523.43,0.00018082,2]
[366443312,1750257071046,-990.9,0.00018082,2]
[366443313,1750257071055,-490.0,0.00018082,2]
[366443314,1750257071066,-151.0,0.00018082,2]
[366443315,1750257071077,-490.0,0.00018082,2]
[366443316,1750257071087,-430.77561726,0.00018082,2]
[366443317,1750257071097,-538.02,0.00018082,2]
[366443318,1750257071107,-763.15,0.00018082,2]
[366443319,1750257071117,-1338.65,0.00018082,2]
[366443320,1750257071127,-203.46329572,0.00018082,2]
[366443321,1750257071138,-613.29,0.00018082,2]
[366443322,1750257071148,-743.18,0.00018082,2]
[366443323,1750257071157,-490.0,0.00018082,2]
[366443324,1750257071167,-490.0,0.00018082,2]
[366443325,1750257071177,-706.15,0.00018082,2]
[366443326,1750257071186,-150.17183145,0.00018082,2]
[366443327,1750257071196,-551.76,0.00018082,2]
[366443328,1750257071206,-490.0,0.00018082,2]
[366443329,1750257071216,-490.0,0.00018082,2]
[366443330,1750257071226,-546.08,0.00018082,2]
[366443331,1750257071236,-490.0,0.00018082,2]
[366443332,1750257071246,-658.72,0.00018082,2]
[366443333,1750257071256,-490.0,0.00018082,2]
[366443334,1750257071267,-533.74,0.00018082,2]
[366443335,1750257071276,-540.51320633,0.00018082,2]
[366443336,1750257071286,-490.0,0.00018082,2]
[366443337,1750257071296,-490.0,0.00018082,2]
[366443338,1750257071306,-490.0,0.00018082,2]
[366443339,1750257071316,-871.98,0.00018082,2]
[366443340,1750257071326,-490.0,0.00018082,2]
[366443341,1750257071336,-490.0,0.00018082,2]
[366443342,1750257071346,-584.75,0.00018082,2]
[366443343,1750257071356,-589.43,0.00018082,2]
[366443344,1750257071367,-490.0,0.00018082,2]
[366443345,1750257071377,-908.44,0.00018082,2]
[366443346,1750257071387,-490.13,0.00018082,2]
[366443347,1750257071397,-490.0,0.00018082,2]
[366443348,1750257071407,-490.0,0.00018082,2]
[366443349,1750257071417,-670.85,0.00018082,2]
[366443350,1750257071429,-490.0,0.00018082,2]
[366443351,1750257071439,-594.25,0.00018082,2]
[366443352,1750257071449,-568.44809026,0.00018082,2]
[366443353,1750257071458,-674.18,0.00018082,2]
[366443354,1750257071470,-562.72,0.00018082,2]
[366443355,1750257071479,-581.59,0.00018082,2]
[366443356,1750257071489,-571.73,0.00018082,2]
[366443357,1750257071500,-490.0,0.00018082,2]
[366443358,1750257071511,-512.65,0.00018082,2]
[366443359,1750257071523,-578.22,0.00018082,2]
[366443360,1750257071533,-502.22,0.00018082,2]
[366443361,1750257071542,-535.71,0.00018082,2]
[366443362,1750257071552,-490.0,0.00018082,2]
[366443363,1750257071562,-528.62,0.00018082,2]
[366443364,1750257071573,-490.0,0.00018082,2]
[366443365,1750257071583,-761.74,0.00018082,2]
[366443366,1750257071593,-490.0,0.00018082,2]
[366443367,1750257071602,-549.14,0.00018082,2]
[366443368,1750257071612,-711.34,0.00018082,2]
[366443369,1750257071622,-1157.46,0.00018082,2]
[366443370,1750257071632,-1138.45,0.00018082,2]
[366443371,1750257071643,-574.18,0.00018082,2]
[366443372,1750257071653,-490.0,0.00018082,2]
[366443373,1750257071663,-490.0,0.00018082,2]
[366443374,1750257071672,-697.93,0.00018082,2]
[366443375,1750257071682,-490.0,0.00018082,2]
[366443376,1750257071692,-1306.71,0.00018082,2]
[366443377,1750257071702,-513.85,0.00018082,2]
[366443378,1750257071712,-490.0,0.00018082,2]
[366443379,1750257071722,-1490.15,0.00018082,2]
[366443380,1750257071732,-1470.31,0.00018082,2]
[366443381,1750257071743,-650.64,0.00018082,2]
[366443382,1750257071752,-714.69,0.00018082,2]
[366443383,1750257071763,-1055.17,0.00018082,2]
[366443384,1750257071773,-490.0,0.00018082,2]
[366443385,1750257071783,-938.74,0.00018082,2]
[366443386,1750257071793,-746.58,0.00018082,2]
[366443387,1750257071802,-752.12,0.00018082,2]
[366443388,1750257071813,-615.79,0.00018082,2]
[366443389,1750257071823,-1184.09,0.00018082,2]
[366443390,1750257071833,-490.0,0.00018082,2]
[366443391,1750257071845,-595.15,0.00018082,2]
[366443392,1750257071855,-546.89,0.00018082,2]
[366443393,1750257071865,-892.68,0.00018082,2]
[366443394,1750257071876,-662.92,0.00018082,2]
[366443395,1750257071886,-490.0,0.00018082,2]
[366443396,1750257071897,-784.12,0.00018082,2]
[366443397,1750257071906,-1398.48,0.00018082,2]
[366443398,1750257071916,-1387.74,0.00018082,2]
[366443399,1750257071926,-1002.15,0.00018082,2]
[366443400,1750257071936,-562.5,0.00018082,2]
[366443401,1750257071946,-490.0,0.00018082,2]
[366443402,1750257071957,-1114.11,0.00018082,2]
[366443403,1750257071967,-1158.83,0.00018082,2]
[366443404,1750257071977,-490.0,0.00018082,2]
[366443405,1750257071988,-1123.05,0.00018082,2]
[366443406,1750257071998,-585.81,0.00018082,2]
[366443407,1750257072009,-490.0,0.00018082,2]
[366443408,1750257072019,-512.44,0.00018082,2]
[366443409,1750257072029,-529.92,0.00018082,2]
[366443410,1750257072039,-619.01,0.00018082,2]
[366443411,1750257072050,-490.0,0.00018082,2]
[366443412,1750257072060,-511.25,0.00018082,2]
[366443413,1750257072070,-490.0,0.00018082,2]
[366443414,1750257072080,-690.3,0.00018082,2]
[366443415,1750257072091,-1128.49,0.00018082,2]
[366443416,1750257072102,-1117.61,0.00018082,2]
[366443417,1750257072116,-490.0,0.00018082,2]
[366443418,1750257072126,-490.0,0.00018082,2]
[366443419,1750257072136,-490.0,0.00018082,2]
[366443420,1750257072146,-1499.37,0.00018082,2]
[366443421,1750257072157,-705.99,0.00018082,2]
[366443422,1750257072167,-1251.05,0.00018082,2]
[366443423,1750257072177,-770.06,0.00018082,2]
[366443424,1750257072186,-490.0,0.00018082,2]
[366443425,1750257072196,-1149.1,0.00018082,2]
[366443426,1750257072206,-607.32,0.00018082,2]
[366443427,1750257072215,-697.95,0.00018082,2]
[366443428,1750257072225,-490.0,0.00018082,2]
[366443429,1750257072235,-951.45,0.00018082,2]
[366443430,1750257072245,-1246.97,0.00018082,2]
[366443431,1750257072255,-490.0,0.00018082,2]
[366443432,1750257072265,-704.38,0.00018082,2]
[366443433,1750257072275,-718.12,0.00018082,2]
[366443434,1750257072284,-783.15,0.00018082,2]
[366443435,1750257072295,-897.47,0.00018082,2]
[366443436,1750257072305,-490.0,0.00018082,2]
[366443437,1750257072315,-655.08,0.00018082,2]
[366443438,1750257072324,-801.94,0.00018082,2]
[366443439,1750257072335,-1547.99,0.00018082,2]
[366443440,1750257072344,-961.74,0.00018082,2]
[366443441,1750257072353,-492.13,0.00018082,2]
[366443442,1750257072363,-490.0,0.00018082,2]
[366443443,1750257072372,-1810.08,0.00018082,2]
[366443444,1750257072382,-609.2,0.00018082,2]
[366443445,1750257072393,-602.08,0.00018082,2]
[366443446,1750257072403,-683.17,0.00018082,2]
[366443447,1750257072415,-750.67,0.00018082,2]
[366443448,1750257072427,-796.54,0.00018082,2]
[366443449,1750257072437,-1113.1,0.00018082,2]
[366443450,1750257072447,-733.94,0.00018082,2]
[366443451,1750257072458,-490.0,0.00018082,2]
[366443452,1750257072467,-1298.39,0.00018082,2]
[366443453,1750257072477,-2524.38,0.00018082,2]
[366443454,1750257072487,-843.28,0.00018082,2]
[366443455,1750257072499,-490.0,0.00018082,2]
[366443456,1750257072509,-624.51,0.00018082,2]
[366443457,1750257072520,-998.1,0.00018082,2]
[366443458,1750257072530,-741.38,0.00018082,2]
[366443459,1750257072540,-1474.63,0.00018082,2]
[366443460,1750257072550,-490.0,0.00018082,2]
[366443461,1750257072560,-793.14,0.00018082,2]
[366443462,1750257072570,-614.44,0.00018082,2]
[366443463,1750257072579,-490.0,0.00018082,2]
[366443464,1750257072589,-646.95,0.00018082,2]
[366443465,1750257072599,-2116.32,0.00018082,2]
[366443466,1750257072609,-600.42,0.00018082,2]
[366443467,1750257072619,-562.77,0.00018082,2]
[366443468,1750257072629,-490.0,0.00018082,2]
[366443469,1750257072638,-1069.11,0.00018082,2]
[366443470,1750257072649,-513.47,0.00018082,2]
[366443471,1750257072664,-567.01,0.00018082,2]
[366443472,1750257072674,-1198.12,0.00018082,2]
[366443473,1750257072684,-490.0,0.00018082,2]
[366443474,1750257072694,-632.91,0.00018082,2]
[366443475,1750257072704,-1414.45,0.00018082,2]
[366443476,1750257072714,-1129.76,0.00018082,2]
[366443477,1750257072724,-490.0,0.00018082,2]
[366443478,1750257072734,-490.0,0.00018082,2]
[366443479,1750257072744,-151.0,0.00018082,2]
[366443480,1750257072754,-151.0,0.00018082,2]
[366443481,1750257072763,-151.0,0.00018082,2]
[366443482,1750257072776,-1728.55837183,0.000181,2]
[366443483,1750257072787,-368.4335177,0.00018119,2]
[366443484,1750257072797,-1000.0,0.00018121,2]
[366443485,1750257072807,-778.87035695,0.00018121,2]
[366443486,1750257072817,-1000.0,0.00018121,2]
[366443487,1750257072828,-1000.0,0.00018121,2]
[366443488,1750257072838,-1000.0,0.00018121,2]
[366443489,1750257072849,-1000.0,0.00018121,2]
[366443490,1750257072859,-1000.0,0.00018121,2]
[366443491,1750257072870,-500.32198926,0.00018121,2]
[366443492,1750257072879,-1000.0,0.00018121,2]
[366443493,1750257072890,-1000.0,0.00018121,2]
[366443494,1750257072900,-1000.0,0.00018121,2]
[366443495,1750257072910,-1000.0,0.00018121,2]
[366443496,1750257072921,-1000.0,0.00018121,2]
[366443497,1750257072931,-500.50607704,0.00018121,2]
[366443498,1750257072941,-1049.93512745,0.00018121,2]
[366443499,1750257072950,-1000.0,0.00018121,2]
[366443500,1750257072960,-537.8204497,0.00018121,2]
[366443501,1750257072970,-1000.0,0.00018121,2]
[366443502,1750257072980,-1794.0,0.00018138,2]
[366443503,1750257072990,-286947.62048909,0.00018245,7]
[366443504,1750257072999,-8711.48921003,0.00018245,2]
[366443505,1750257073009,-151.527042,0.00018246,2]
[366443506,1750257073021,-490.0,0.00018246,2]
[366443507,1750257073032,-686.14,0.00018246,2]
[366443508,1750257073042,-551.49,0.00018246,2]
[366443509,1750257073052,-777.25,0.00018246,2]
[366443510,1750257073062,-490.0,0.00018246,2]
[366443511,1750257073072,-518.54,0.00018246,2]
[366443512,1750257073082,-560.09,0.00018246,2]
[366443513,1750257073092,-285.76,0.00018246,2]
[366443514,1750257073102,-490.0,0.00018246,2]
[366443515,1750257073112,-224.38916435,0.00018246,2]
[366443516,1750257073122,-490.0,0.00018246,2]
[366443517,1750257073207,-490.0,0.00018246,2]
[366443518,1750257073217,-490.0,0.00018246,2]
[366443519,1750257073226,-401.00587034,0.00018246,2]
[366443520,1750257073235,-781.86,0.00018246,2]
[366443521,1750257073245,-492.72,0.00018246,2]
[366443522,1750257073254,-490.0,0.00018246,2]
[366443523,1750257073267,-519.56,0.00018246,2]
[366443524,1750257073276,-523.43,0.00018246,2]
[366443525,1750257073285,-990.9,0.00018246,2]
[366443526,1750257073295,-490.0,0.00018246,2]
[366443527,1750257073305,-490.0,0.00018246,2]
[366443528,1750257073314,-538.02,0.00018246,2]
[366443529,1750257073324,-763.15,0.00018246,2]
[366443530,1750257073333,-1338.65,0.00018246,2]
[366443531,1750257073343,-613.29,0.00018246,2]
[366443532,1750257073353,-743.18,0.00018246,2]
[366443533,1750257073362,-490.0,0.00018246,2]
[366443534,1750257073372,-576.20595923,0.00018246,2]
[366443535,1750257073382,-706.15,0.00018246,2]
[366443536,1750257073391,-551.76,0.00018246,2]
[366443537,1750257073401,-490.0,0.00018246,2]
[366443538,1750257073410,-490.0,0.00018246,2]
[366443539,1750257073421,-546.08,0.00018246,2]
[366443540,1750257073431,-490.0,0.00018246,2]
[366443541,1750257073441,-658.72,0.00018246,2]
[366443542,1750257073450,-490.0,0.00018246,2]
[366443543,1750257073460,-533.74,0.00018246,2]
[366443544,1750257073470,-490.0,0.00018246,2]
[366443545,1750257073480,-490.0,0.00018246,2]
[366443546,1750257073489,-413.57841654,0.00018246,2]
[366443547,1750257073500,-871.98,0.00018246,2]
[366443548,1750257073510,-490.0,0.00018246,2]
[366443549,1750257073521,-490.0,0.00018246,2]
[366443550,1750257073531,-584.75,0.00018246,2]
[366443551,1750257073540,-589.43,0.00018246,2]
[366443552,1750257073550,-490.0,0.00018246,2]
[366443553,1750257073560,-908.44,0.00018246,2]
[366443554,1750257073569,-490.13,0.00018246,2]
[366443555,1750257073579,-490.0,0.00018246,2]
[366443556,1750257073588,-490.0,0.00018246,2]
[366443557,1750257073597,-670.85,0.00018246,2]
[366443558,1750257073607,-490.0,0.00018246,2]
[366443559,1750257073617,-594.25,0.00018246,2]
[366443560,1750257073627,-674.18,0.00018246,2]
[366443561,1750257073637,-562.72,0.00018246,2]
[366443562,1750257073648,-581.59,0.00018246,2]
[366443563,1750257073658,-571.73,0.00018246,2]
[366443564,1750257073667,-474.45186209,0.00018246,2]
[366443565,1750257073677,-512.65,0.00018246,2]
[366443566,1750257073685,-578.22,0.00018246,2]
[366443567,1750257073694,-502.22,0.00018246,2]
[366443568,1750257073704,-535.71,0.00018246,2]
[366443569,1750257073713,-151.0,0.00018246,2]
[366443570,1750257073723,-490.0,0.00018246,2]
[366443571,1750257073732,-528.62,0.00018246,2]
[366443572,1750257073742,-490.0,0.00018246,2]
[366443573,1750257073752,-761.74,0.00018246,2]
[366443574,1750257073762,-490.0,0.00018246,2]
[366443575,1750257073774,-549.14,0.00018246,2]
[366443576,1750257073784,-711.34,0.00018246,2]
[366443577,1750257073793,-1157.46,0.00018246,2]
[366443578,1750257073804,-1138.45,0.00018246,2]
[366443579,1750257073814,-574.18,0.00018246,2]
[366443580,1750257073824,-490.0,0.00018246,2]
[366443581,1750257073834,-490.0,0.00018246,2]
[366443582,1750257073844,-697.93,0.00018246,2]
[366443583,1750257073854,-490.0,0.00018246,2]
[366443584,1750257073864,-1306.71,0.00018246,2]
[366443585,1750257073874,-513.85,0.00018246,2]
[366443586,1750257073884,-490.0,0.00018246,2]
[366443587,1750257073894,-169.02903,0.00018246,2]
[366443588,1750257073905,-1490.15,0.00018246,2]
[366443589,1750257073915,-1470.31,0.00018246,2]
[366443590,1750257073926,-650.64,0.00018246,2]
[366443591,1750257073937,-714.69,0.00018246,2]
[366443592,1750257073947,-1055.17,0.00018246,2]
[366443593,1750257073958,-490.0,0.00018246,2]
[366443594,1750257073967,-938.74,0.00018246,2]
[366443595,1750257073977,-752.12,0.00018246,2]
[366443596,1750257073987,-746.58,0.00018246,2]
[366443597,1750257073997,-615.79,0.00018246,2]
[366443598,1750257074006,-1184.09,0.00018246,2]
[366443599,1750257074018,-490.0,0.00018246,2]
[366443600,1750257074027,-595.15,0.00018246,2]
[366443601,1750257074038,-546.89,0.00018246,2]
[366443602,1750257074048,-892.68,0.00018246,2]
[366443603,1750257074058,-662.92,0.00018246,2]
[366443604,1750257074068,-490.0,0.00018246,2]
[366443605,1750257074078,-784.12,0.00018246,2]
[366443606,1750257074087,-151.0,0.00018246,2]
[366443607,1750257074098,-1398.48,0.00018246,2]
[366443608,1750257074109,-1387.74,0.00018246,2]
[366443609,1750257074119,-1002.15,0.00018246,2]
[366443610,1750257074129,-562.5,0.00018246,2]
[366443611,1750257074140,-490.0,0.00018246,2]
[366443612,1750257074150,-1114.11,0.00018246,2]
[366443613,1750257074161,-1158.83,0.00018246,2]
[366443614,1750257074171,-490.0,0.00018246,2]
[366443615,1750257074181,-1123.05,0.00018246,2]
[366443616,1750257074190,-585.81,0.00018246,2]
[366443617,1750257074200,-490.0,0.00018246,2]
[366443618,1750257074210,-512.44,0.00018246,2]
[366443619,1750257074219,-529.92,0.00018246,2]
[366443620,1750257074229,-619.01,0.00018246,2]
[366443621,1750257074239,-490.0,0.00018246,2]
[366443622,1750257074249,-511.25,0.00018246,2]
[366443623,1750257074259,-490.0,0.00018246,2]
[366443624,1750257074273,-690.3,0.00018246,2]
[366443625,1750257074284,-1128.49,0.00018246,2]
[366443626,1750257074294,-1117.61,0.00018246,2]
[366443627,1750257074304,-490.0,0.00018246,2]
[366443628,1750257074313,-490.0,0.00018246,2]
[366443629,1750257074323,-490.0,0.00018246,2]
[366443630,1750257074333,-1499.37,0.00018246,2]
[366443631,1750257074343,-705.99,0.00018246,2]
[366443632,1750257074353,-1251.05,0.00018246,2]
[366443633,1750257074363,-770.06,0.00018246,2]
[366443634,1750257074373,-490.0,0.00018246,2]
[366443635,1750257074383,-1149.1,0.00018246,2]
[366443636,1750257074393,-607.32,0.00018246,2]
[366443637,1750257074403,-697.95,0.00018246,2]
[366443638,1750257074415,-490.0,0.00018246,2]
[366443639,1750257074429,-951.45,0.00018246,2]
[366443640,1750257074440,-1246.97,0.00018246,2]
[366443641,1750257074449,-490.0,0.00018246,2]
[366443642,1750257074461,-704.38,0.00018246,2]
[366443643,1750257074471,-718.12,0.00018246,2]
[366443644,1750257074481,-783.15,0.00018246,2]
[366443645,1750257074491,-897.47,0.00018246,2]
[366443646,1750257074502,-318.89843966,0.00018246,2]
[366443647,1750257074512,-655.08,0.00018246,2]
[366443648,1750257074525,-1547.99,0.00018246,2]
[366443649,1750257074535,-801.94,0.00018246,2]
[366443650,1750257074545,-961.74,0.00018246,2]
[366443651,1750257074554,-492.13,0.00018246,2]
[366443652,1750257074564,-490.0,0.00018246,2]
[366443653,1750257074574,-1810.08,0.00018246,2]
[366443654,1750257074584,-609.2,0.00018246,2]
[366443655,1750257074595,-683.17,0.00018246,2]
[366443656,1750257074605,-602.08,0.00018246,2]
[366443657,1750257074614,-750.67,0.00018246,2]
[366443658,1750257074624,-796.54,0.00018246,2]
[366443659,1750257074634,-1113.1,0.00018246,2]
[366443660,1750257074643,-151.0,0.00018246,2]
[366443661,1750257074653,-733.94,0.00018246,2]
[366443662,1750257074664,-151.0,0.00018246,2]
[366443663,1750257074673,-490.0,0.00018246,2]
[366443664,1750257074684,-1298.39,0.00018246,2]
[366443665,1750257074693,-2524.38,0.00018246,2]
[366443666,1750257074704,-843.28,0.00018246,2]
[366443667,1750257074714,-622.08871692,0.00018246,2]
[366443668,1750257074723,-624.51,0.00018246,2]
[366443669,1750257074733,-998.1,0.00018246,2]
[366443670,1750257074743,-741.38,0.00018246,2]
[366443671,1750257074753,-1474.63,0.00018246,2]
[366443672,1750257074762,-490.0,0.00018246,2]
[366443673,1750257074777,-793.14,0.00018246,2]
[366443674,1750257074786,-614.44,0.00018246,2]
[366443675,1750257074795,-490.0,0.00018246,2]
[366443676,1750257074805,-646.95,0.00018246,2]
[366443677,1750257074815,-2116.32,0.00018246,2]
[366443678,1750257074826,-600.42,0.00018246,2]